fUST/lending_fUST_20260514
["ID","MTS","AMOUNT","RATE_DAILY","PERIOD"]
[422223287,1778727053000,-613.427854,0.00011506,2]
[422223288,1778727053000,-494.37334,0.00011506,2]
[422223298,1778727053000,-500.0,0.00011506,2]
[422223289,1778727053000,-500.0,0.00011506,2]
[422223286,1778727053000,-494.373344,0.00011506,2]
[422223291,1778727053000,-500.0,0.00011506,2]
[422223294,1778727053000,-500.0,0.00011506,2]
[422223292,1778727053000,-624.63935706,0.00011506,2]
[422223293,1778727053000,-500.0,0.00011506,2]
[422223290,1778727053000,-500.0,0.00011506,2]
[422223297,1778727053000,-500.0,0.00011506,2]
[422223299,1778727053000,-500.0,0.00011506,2]
[422223246,1778727053000,-300.0,0.00011506,2]
[422223281,1778727053000,-613.427863,0.00011506,2]
[422223268,1778727053000,-417.369521,0.00011506,2]
[422223295,1778727053000,-500.0,0.00011506,2]
[422223270,1778727053000,-417.369517,0.00011506,2]
[422223266,1778727053000,-1599.19,0.00011506,2]
[422223237,1778727053000,-500.0,0.00011506,2]
[422223238,1778727053000,-300.0,0.00011506,2]
[422223243,1778727053000,-300.0,0.00011506,2]
[422223239,1778727053000,-500.95392268,0.00011506,2]
[422223240,1778727053000,-500.0,0.00011506,2]
[422223242,1778727053000,-500.99623973,0.00011506,2]
[422223244,1778727053000,-999.5,0.00011506,2]
[422223247,1778727053000,-500.0,0.00011506,2]
[422223251,1778727053000,-151.0,0.00011506,2]
[422223258,1778727053000,-278.84224,0.00011506,2]
[422223248,1778727053000,-196.695385,0.00011506,2]
[422223250,1778727053000,-151.0,0.00011506,2]
[422223249,1778727053000,-196.695385,0.00011506,2]
[422223241,1778727053000,-300.0,0.00011506,2]
[422223254,1778727053000,-151.0,0.00011506,2]
[422223262,1778727053000,-500.0,0.00011506,2]
[422223252,1778727053000,-196.695385,0.00011506,2]
[422223271,1778727053000,-500.0,0.00011506,2]
[422223272,1778727053000,-500.0,0.00011506,2]
[422223263,1778727053000,-500.0,0.00011506,2]
[422223264,1778727053000,-512.82,0.00011506,2]
[422223261,1778727053000,-677.229534,0.00011506,2]
[422223260,1778727053000,-677.229542,0.00011506,2]
[422223253,1778727053000,-151.0,0.00011506,2]
[422223255,1778727053000,-500.0,0.00011506,2]
[422223257,1778727053000,-677.229542,0.00011506,2]
[422223256,1778727053000,-196.695377,0.00011506,2]
[422223259,1778727053000,-677.229542,0.00011506,2]
[422223325,1778727054000,-663.902263,0.00011506,2]
[422223328,1778727054000,-663.902263,0.00011506,2]
[422223317,1778727054000,-950.96,0.00011506,2]
[422223336,1778727054000,-500.0,0.00011506,2]
[422223335,1778727054000,-500.0,0.00011506,2]
[422223326,1778727054000,-200.812441,0.00011506,2]
[422223327,1778727054000,-200.812441,0.00011506,2]
[422223324,1778727054000,-663.902263,0.00011506,2]
[422223329,1778727054000,-663.902267,0.00011506,2]
[422223338,1778727054000,-151.0,0.00011506,2]
[422223332,1778727054000,-500.0,0.00011506,2]
[422223331,1778727054000,-200.812433,0.00011506,2]
[422223330,1778727054000,-200.812441,0.00011506,2]
[422223333,1778727054000,-500.0,0.00011506,2]
[422223348,1778727054000,-212.244388,0.00011506,2]
[422223349,1778727054000,-212.244388,0.00011506,2]
[422223337,1778727054000,-500.0,0.00011506,2]
[422223316,1778727054000,-663.902263,0.00011506,2]
[422223341,1778727054000,-151.0,0.00011506,2]
[422223334,1778727054000,-500.0,0.00011506,2]
[422223314,1778727054000,-2880.466975,0.00011506,2]
[422223307,1778727054000,-500.0,0.00011506,2]
[422223320,1778727054000,-663.902263,0.00011506,2]
[422223339,1778727054000,-151.0,0.00011506,2]
[422223301,1778727054000,-500.0,0.00011506,2]
[422223300,1778727054000,-659.5,0.00011506,2]
[422223302,1778727054000,-500.0,0.00011506,2]
[422223303,1778727054000,-553.78,0.00011506,2]
[422223308,1778727054000,-2880.466971,0.00011506,2]
[422223310,1778727054000,-2880.466971,0.00011506,2]
[422223304,1778727054000,-500.0,0.00011506,2]
[422223306,1778727054000,-2880.466971,0.00011506,2]
[422223309,1778727054000,-2880.466971,0.00011506,2]
[422223305,1778727054000,-2880.466971,0.00011506,2]
[422223312,1778727054000,-1728.19,0.00011506,2]
[422223323,1778727054000,-200.812441,0.00011506,2]
[422223322,1778727054000,-200.812441,0.00011506,2]
[422223313,1778727054000,-2880.466971,0.00011506,2]
[422223321,1778727054000,-663.902263,0.00011506,2]
[422223315,1778727054000,-663.902263,0.00011506,2]
[422223319,1778727054000,-200.812441,0.00011506,2]
[422223318,1778727054000,-200.812441,0.00011506,2]
[422223311,1778727054000,-2880.466971,0.00011506,2]
[422223340,1778727054000,-151.0,0.00011506,2]
[422223342,1778727054000,-693.75,0.00011506,2]
[422223345,1778727054000,-500.0,0.00011506,2]
[422223368,1778727054000,-500.0,0.00011506,2]
[422223371,1778727054000,-32.20843103,0.00011506,2]
[422223372,1778727054000,-118.79156897,0.00011506,2]
[422223374,1778727054000,-151.0,0.00011506,2]
[422223373,1778727054000,-151.0,0.00011506,2]
[422223375,1778727054000,-151.0,0.00011506,2]
[422223377,1778727054000,-28.70819463,0.00011506,2]
[422223379,1778727054000,-194.024264,0.00011506,2]
[422223386,1778727054000,-500.0,0.00011506,2]
[422223370,1778727054000,-151.0,0.00011506,2]
[422223378,1778727054000,-122.29180537,0.00011506,2]
[422223376,1778727054000,-151.0,0.00011506,2]
[422223385,1778727054000,-555.12,0.00011506,2]
[422223384,1778727054000,-500.0,0.00011506,2]
[422223382,1778727054000,-151.0,0.00011506,2]
[422223381,1778727054000,-105.14813289,0.00011506,2]
[422223383,1778727054000,-500.0,0.00011506,2]
[422223389,1778727054000,-500.0,0.00011506,2]
[422223388,1778727054000,-500.0,0.00011506,2]
[422223343,1778727054000,-500.68661428,0.00011506,2]
[422223380,1778727054000,-45.85186711,0.00011506,2]
[422223367,1778727054000,-500.0,0.00011506,2]
[422223387,1778727054000,-500.0,0.00011506,2]
[422223366,1778727054000,-500.0,0.00011506,2]
[422223347,1778727054000,-500.0,0.00011506,2]
[422223369,1778727054000,-151.0,0.00011506,2]
[422223344,1778727054000,-500.0,0.00011506,2]
[422223346,1778727054000,-500.0,0.00011506,2]
[422223351,1778727054000,-500.0,0.00011506,2]
[422223363,1778727054000,-212.244388,0.00011506,2]
[422223361,1778727054000,-212.244388,0.00011506,2]
[422223354,1778727054000,-212.244388,0.00011506,2]
[422223352,1778727054000,-1712.337036,0.00011506,2]
[422223362,1778727054000,-500.0,0.00011506,2]
[422223353,1778727054000,-212.244388,0.00011506,2]
[422223358,1778727054000,-212.244388,0.00011506,2]
[422223355,1778727054000,-1712.337036,0.00011506,2]
[422223356,1778727054000,-1712.337036,0.00011506,2]
[422223359,1778727054000,-1712.337036,0.00011506,2]
[422223360,1778727054000,-1712.337036,0.00011506,2]
[422223357,1778727054000,-212.244388,0.00011506,2]
[422223350,1778727054000,-1712.337036,0.00011506,2]
[422223365,1778727054000,-1712.337039,0.00011506,2]
[422223364,1778727054000,-1712.337036,0.00011506,2]
[422223418,1778727055000,-500.0,0.00011506,2]
[422223428,1778727055000,-500.0,0.00011506,2]
[422223422,1778727055000,-1616.45,0.00011506,2]
[422223421,1778727055000,-1149.192119,0.00011506,2]
[422223425,1778727055000,-151.0,0.00011506,2]
[422223427,1778727055000,-500.0,0.00011506,2]
[422223419,1778727055000,-1149.192119,0.00011506,2]
[422223420,1778727055000,-707.04,0.00011506,2]
[422223417,1778727055000,-1149.192119,0.00011506,2]
[422223430,1778727055000,-244.856741,0.00011506,2]
[422223423,1778727055000,-1149.192115,0.00011506,2]
[422223429,1778727055000,-2643.79,0.00011506,2]
[422223435,1778727055000,-244.856741,0.00011506,2]
[422223440,1778727055000,-633.1,0.00011506,2]
[422223439,1778727055000,-244.856741,0.00011506,2]
[422223433,1778727055000,-500.0,0.00011506,2]
[422223441,1778727055000,-244.856741,0.00011506,2]
[422223434,1778727055000,-244.856741,0.00011506,2]
[422223432,1778727055000,-500.0,0.00011506,2]
[422223438,1778727055000,-500.0,0.00011506,2]
[422223436,1778727055000,-244.856741,0.00011506,2]
[422223437,1778727055000,-2653.28,0.00011506,2]
[422223443,1778727055000,-374.70350919,0.00011506,2]
[422223442,1778727055000,-244.856741,0.00011506,2]
[422223424,1778727055000,-151.0,0.00011506,2]
[422223431,1778727055000,-588.17095224,0.00011506,2]
[422223415,1778727055000,-500.0,0.00011506,2]
[422223400,1778727055000,-6540.294876,0.00011506,2]
[422223416,1778727055000,-500.66303327,0.00011506,2]
[422223444,1778727055000,-244.856737,0.00011506,2]
[422223399,1778727055000,-364.187401,0.00011506,2]
[422223392,1778727055000,-6540.294876,0.00011506,2]
[422223390,1778727055000,-500.0,0.00011506,2]
[422223394,1778727055000,-6540.294876,0.00011506,2]
[422223391,1778727055000,-500.68189409,0.00011506,2]
[422223393,1778727055000,-500.0,0.00011506,2]
[422223401,1778727055000,-364.187401,0.00011506,2]
[422223395,1778727055000,-364.187401,0.00011506,2]
[422223396,1778727055000,-364.187401,0.00011506,2]
[422223397,1778727055000,-6540.294876,0.00011506,2]
[422223398,1778727055000,-6540.294876,0.00011506,2]
[422223402,1778727055000,-6540.294876,0.00011506,2]
[422223405,1778727055000,-364.187401,0.00011506,2]
[422223404,1778727055000,-6540.294876,0.00011506,2]
[422223407,1778727055000,-364.187401,0.00011506,2]
[422223403,1778727055000,-364.187401,0.00011506,2]
[422223406,1778727055000,-6540.294876,0.00011506,2]
[422223409,1778727055000,-500.0,0.00011506,2]
[422223412,1778727055000,-1149.192119,0.00011506,2]
[422223413,1778727055000,-500.0,0.00011506,2]
[422223411,1778727055000,-1149.192119,0.00011506,2]
[422223414,1778727055000,-1149.192119,0.00011506,2]
[422223408,1778727055000,-364.187397,0.00011506,2]
[422223410,1778727055000,-1149.192119,0.00011506,2]
[422223426,1778727055000,-500.0,0.00011506,2]
[422223448,1778727055000,-500.0,0.00011506,2]
[422223493,1778727055000,-391.9012,0.00011506,2]
[422223445,1778727055000,-500.0,0.00011506,2]
[422223474,1778727055000,-415.154726,0.00011506,2]
[422223478,1778727055000,-297.458208,0.00011506,2]
[422223479,1778727055000,-297.458208,0.00011506,2]
[422223482,1778727055000,-297.458208,0.00011506,2]
[422223481,1778727055000,-1505.9,0.00011506,2]
[422223483,1778727055000,-297.458208,0.00011506,2]
[422223485,1778727055000,-3202.97,0.00011506,2]
[422223486,1778727055000,-333.201864,0.00011506,2]
[422223484,1778727055000,-757.24,0.00011506,2]
[422223487,1778727055000,-333.201864,0.00011506,2]
[422223489,1778727055000,-500.0,0.00011506,2]
[422223495,1778727055000,-1372.78,0.00011506,2]
[422223494,1778727055000,-391.9012,0.00011506,2]
[422223491,1778727055000,-333.201864,0.00011506,2]
[422223488,1778727055000,-391.9012,0.00011506,2]
[422223490,1778727055000,-391.9012,0.00011506,2]
[422223492,1778727055000,-333.201864,0.00011506,2]
[422223497,1778727055000,-333.201864,0.00011506,2]
[422223500,1778727055000,-500.0,0.00011506,2]
[422223499,1778727055000,-391.9012,0.00011506,2]
[422223496,1778727055000,-333.201864,0.00011506,2]
[422223501,1778727055000,-342.096822,0.00011506,2]
[422223498,1778727055000,-391.9012,0.00011506,2]
[422223450,1778727055000,-1668.9,0.00011506,2]
[422223502,1778727055000,-333.201864,0.00011506,2]
[422223476,1778727055000,-297.458208,0.00011506,2]
[422223477,1778727055000,-297.458208,0.00011506,2]
[422223503,1778727055000,-342.096822,0.00011506,2]
[422223473,1778727055000,-297.458208,0.00011506,2]
[422223446,1778727055000,-500.0,0.00011506,2]
[422223475,1778727055000,-297.458208,0.00011506,2]
[422223449,1778727055000,-764.1,0.00011506,2]
[422223452,1778727055000,-500.0,0.00011506,2]
[422223454,1778727055000,-500.0,0.00011506,2]
[422223453,1778727055000,-500.0,0.00011506,2]
[422223455,1778727055000,-500.0,0.00011506,2]
[422223451,1778727055000,-529.87,0.00011506,2]
[422223457,1778727055000,-500.0,0.00011506,2]
[422223467,1778727055000,-501.05320256,0.00011506,2]
[422223469,1778727055000,-415.154734,0.00011506,2]
[422223470,1778727055000,-415.154734,0.00011506,2]
[422223468,1778727055000,-415.154734,0.00011506,2]
[422223447,1778727055000,-500.0,0.00011506,2]
[422223458,1778727055000,-500.0,0.00011506,2]
[422223464,1778727055000,-415.154734,0.00011506,2]
[422223465,1778727055000,-537.8,0.00011506,2]
[422223460,1778727055000,-500.65828092,0.00011506,2]
[422223459,1778727055000,-500.0,0.00011506,2]
[422223461,1778727055000,-500.91159784,0.00011506,2]
[422223466,1778727055000,-415.154734,0.00011506,2]
[422223463,1778727055000,-415.154734,0.00011506,2]
[422223462,1778727055000,-500.0,0.00011506,2]
[422223471,1778727055000,-500.0,0.00011506,2]
[422223472,1778727055000,-415.154734,0.00011506,2]
[422223456,1778727055000,-500.0,0.00011506,2]
[422223480,1778727055000,-500.0,0.00011506,2]
[422223541,1778727056000,-1104.976051,0.00011506,2]
[422223542,1778727056000,-1104.976055,0.00011506,2]
[422223539,1778727056000,-500.0,0.00011506,2]
[422223534,1778727056000,-1104.976051,0.00011506,2]
[422223531,1778727056000,-375.84,0.00011506,2]
[422223535,1778727056000,-1104.976051,0.00011506,2]
[422223536,1778727056000,-375.84,0.00011506,2]
[422223532,1778727056000,-971.46,0.00011506,2]
[422223533,1778727056000,-375.84,0.00011506,2]
[422223537,1778727056000,-375.84,0.00011506,2]
[422223540,1778727056000,-500.0,0.00011506,2]
[422223545,1778727056000,-500.0,0.00011506,2]
[422223544,1778727056000,-500.0,0.00011506,2]
[422223547,1778727056000,-4226.26,0.00011506,2]
[422223550,1778727056000,-176.123271,0.00011506,2]
[422223546,1778727056000,-176.123271,0.00011506,2]
[422223548,1778727056000,-176.123271,0.00011506,2]
[422223549,1778727056000,-500.72105439,0.00011506,2]
[422223552,1778727056000,-500.0,0.00011506,2]
[422223562,1778727056000,-487.82286655,0.00011506,2]
[422223558,1778727056000,-176.123278,0.00011506,2]
[422223551,1778727056000,-176.123271,0.00011506,2]
[422223530,1778727056000,-1211.97,0.00011506,2]
[422223559,1778727056000,-500.0,0.00011506,2]
[422223543,1778727056000,-1049.97,0.00011506,2]
[422223528,1778727056000,-829.65,0.00011506,2]
[422223518,1778727056000,-641.43,0.00011506,2]
[422223527,1778727056000,-1104.976051,0.00011506,2]
[422223554,1778727056000,-151.0,0.00011506,2]
[422223505,1778727056000,-391.9012,0.00011506,2]
[422223504,1778727056000,-333.201864,0.00011506,2]
[422223507,1778727056000,-342.096822,0.00011506,2]
[422223506,1778727056000,-391.9012,0.00011506,2]
[422223509,1778727056000,-4266.71,0.00011506,2]
[422223511,1778727056000,-342.096822,0.00011506,2]
[422223508,1778727056000,-342.096822,0.00011506,2]
[422223510,1778727056000,-342.096822,0.00011506,2]
[422223513,1778727056000,-500.0,0.00011506,2]
[422223514,1778727056000,-151.0,0.00011506,2]
[422223529,1778727056000,-1104.976051,0.00011506,2]
[422223512,1778727056000,-500.0,0.00011506,2]
[422223516,1778727056000,-342.096822,0.00011506,2]
[422223517,1778727056000,-342.09683,0.00011506,2]
[422223520,1778727056000,-375.84,0.00011506,2]
[422223521,1778727056000,-375.84,0.00011506,2]
[422223523,1778727056000,-1104.976051,0.00011506,2]
[422223519,1778727056000,-500.0,0.00011506,2]
[422223522,1778727056000,-1104.976051,0.00011506,2]
[422223524,1778727056000,-375.84,0.00011506,2]
[422223525,1778727056000,-500.0,0.00011506,2]
[422223526,1778727056000,-375.84,0.00011506,2]
[422223538,1778727056000,-495.95498238,0.00011506,2]
[422223515,1778727056000,-151.0,0.00011506,2]
[422223557,1778727056000,-176.123271,0.00011506,2]
[422223599,1778727056000,-500.0,0.00011506,2]
[422223560,1778727056000,-2913.71,0.00011506,2]
[422223588,1778727056000,-323.882932,0.00011506,2]
[422223590,1778727056000,-500.0,0.00011506,2]
[422223591,1778727056000,-500.0,0.00011506,2]
[422223592,1778727056000,-2051.95,0.00011506,2]
[422223589,1778727056000,-323.882932,0.00011506,2]
[422223593,1778727056000,-467.655003,0.00011506,2]
[422223594,1778727056000,-467.6550041,0.00011506,2]
[422223597,1778727056000,-323.882939,0.00011506,2]
[422223598,1778727056000,-1029.274907,0.00011506,2]
[422223596,1778727056000,-500.0,0.00011506,2]
[422223595,1778727056000,-323.882932,0.00011506,2]
[422223580,1778727056000,-323.882932,0.00011506,2]
[422223600,1778727056000,-1029.274907,0.00011506,2]
[422223610,1778727056000,-1029.274903,0.00011506,2]
[422223608,1778727056000,-1029.274907,0.00011506,2]
[422223604,1778727056000,-500.0,0.00011506,2]
[422223612,1778727056000,-873.46,0.00011506,2]
[422223611,1778727056000,-500.0,0.00011506,2]
[422223606,1778727056000,-1029.274907,0.00011506,2]
[422223605,1778727056000,-731.67,0.00011506,2]
[422223602,1778727056000,-1029.274907,0.00011506,2]
[422223607,1778727056000,-2703.67,0.00011506,2]
[422223609,1778727056000,-1029.274907,0.00011506,2]
[422223555,1778727056000,-176.123271,0.00011506,2]
[422223603,1778727056000,-1029.274907,0.00011506,2]
[422223579,1778727056000,-467.655003,0.00011506,2]
[422223601,1778727056000,-500.89835925,0.00011506,2]
[422223581,1778727056000,-323.882932,0.00011506,2]
[422223585,1778727056000,-323.882932,0.00011506,2]
[422223553,1778727056000,-151.0,0.00011506,2]
[422223556,1778727056000,-176.123271,0.00011506,2]
[422223561,1778727056000,-500.0,0.00011506,2]
[422223564,1778727056000,-500.0,0.00011506,2]
[422223574,1778727056000,-224.53636635,0.00011506,2]
[422223569,1778727056000,-537.1103151,0.00011506,2]
[422223565,1778727056000,-621.23,0.00011506,2]
[422223567,1778727056000,-2595.239103,0.00011506,2]
[422223566,1778727056000,-2595.239103,0.00011506,2]
[422223563,1778727056000,-500.0,0.00011506,2]
[422223573,1778727056000,-2595.239103,0.00011506,2]
[422223568,1778727056000,-761.38,0.00011506,2]
[422223570,1778727056000,-2595.239103,0.00011506,2]
[422223583,1778727056000,-467.655003,0.00011506,2]
[422223584,1778727056000,-323.882932,0.00011506,2]
[422223578,1778727056000,-467.655003,0.00011506,2]
[422223577,1778727056000,-2595.23910056,0.00011506,2]
[422223587,1778727056000,-467.655003,0.00011506,2]
[422223582,1778727056000,-467.655003,0.00011506,2]
[422223586,1778727056000,-467.655003,0.00011506,2]
[422223576,1778727056000,-2595.239103,0.00011506,2]
[422223571,1778727056000,-500.0,0.00011506,2]
[422223572,1778727056000,-2595.239103,0.00011506,2]
[422223575,1778727056000,-2595.239103,0.00011506,2]
[422223656,1778727057000,-167.423495,0.00011506,2]
[422223665,1778727057000,-367.66201442,0.00011506,2]
[422223655,1778727057000,-500.0,0.00011506,2]
[422223653,1778727057000,-2653.83,0.00011506,2]
[422223664,1778727057000,-167.423495,0.00011506,2]
[422223654,1778727057000,-167.423495,0.00011506,2]
[422223646,1778727057000,-263.078061,0.00011506,2]
[422223648,1778727057000,-263.078061,0.00011506,2]
[422223650,1778727057000,-263.07807,0.00011506,2]
[422223647,1778727057000,-500.0,0.00011506,2]
[422223645,1778727057000,-220.736876,0.00011506,2]
[422223644,1778727057000,-500.0,0.00011506,2]
[422223649,1778727057000,-586.74625025,0.00011506,2]
[422223659,1778727057000,-167.423495,0.00011506,2]
[422223674,1778727057000,-1583.93,0.00011506,2]
[422223663,1778727057000,-576.96,0.00011506,2]
[422223658,1778727057000,-167.423495,0.00011506,2]
[422223657,1778727057000,-167.423495,0.00011506,2]
[422223661,1778727057000,-797.44,0.00011506,2]
[422223662,1778727057000,-500.0,0.00011506,2]
[422223666,1778727057000,-167.423493,0.00011506,2]
[422223669,1778727057000,-151.0,0.00011506,2]
[422223672,1778727057000,-500.0,0.00011506,2]
[422223673,1778727057000,-500.0,0.00011506,2]
[422223668,1778727057000,-500.0,0.00011506,2]
[422223676,1778727057000,-151.0,0.00011506,2]
[422223670,1778727057000,-151.0,0.00011506,2]
[422223642,1778727057000,-220.736885,0.00011506,2]
[422223660,1778727057000,-167.423495,0.00011506,2]
[422223643,1778727057000,-263.078061,0.00011506,2]
[422223615,1778727057000,-3560.82,0.00011506,2]
[422223651,1778727057000,-151.0,0.00011506,2]
[422223613,1778727057000,-1321.15,0.00011506,2]
[422223623,1778727057000,-500.0,0.00011506,2]
[422223614,1778727057000,-500.0,0.00011506,2]
[422223625,1778727057000,-500.0,0.00011506,2]
[422223624,1778727057000,-500.0,0.00011506,2]
[422223671,1778727057000,-500.0,0.00011506,2]
[422223626,1778727057000,-220.736885,0.00011506,2]
[422223616,1778727057000,-1076.04,0.00011506,2]
[422223618,1778727057000,-500.0,0.00011506,2]
[422223620,1778727057000,-600.22,0.00011506,2]
[422223622,1778727057000,-1425.24,0.00011506,2]
[422223617,1778727057000,-500.0,0.00011506,2]
[422223619,1778727057000,-500.0,0.00011506,2]
[422223621,1778727057000,-500.0,0.00011506,2]
[422223628,1778727057000,-500.0,0.00011506,2]
[422223627,1778727057000,-220.736885,0.00011506,2]
[422223629,1778727057000,-263.078061,0.00011506,2]
[422223638,1778727057000,-263.078061,0.00011506,2]
[422223639,1778727057000,-220.736885,0.00011506,2]
[422223630,1778727057000,-500.0,0.00011506,2]
[422223631,1778727057000,-220.736885,0.00011506,2]
[422223633,1778727057000,-220.736885,0.00011506,2]
[422223632,1778727057000,-263.078061,0.00011506,2]
[422223635,1778727057000,-500.0,0.00011506,2]
[422223634,1778727057000,-500.0,0.00011506,2]
[422223637,1778727057000,-220.736885,0.00011506,2]
[422223636,1778727057000,-263.078061,0.00011506,2]
[422223641,1778727057000,-501.35165738,0.00011506,2]
[422223640,1778727057000,-501.09989892,0.00011506,2]
[422223652,1778727057000,-151.0,0.00011506,2]
[422223667,1778727057000,-830.29,0.00011506,2]
[422223677,1778727057000,-379.32745557,0.00011506,2]
[422223678,1778727057000,-1656.67,0.00011506,2]
[422223713,1778727057000,-181.614933,0.0001178,2]
[422223714,1778727057000,-181.614933,0.0001178,2]
[422223706,1778727057000,-500.0,0.00011507,2]
[422223715,1778727057000,-181.614933,0.0001178,2]
[422223711,1778727057000,-500.0,0.0001178,2]
[422223719,1778727057000,-500.0,0.0001178,2]
[422223729,1778727057000,-171.827383,0.0001178,2]
[422223721,1778727057000,-862.18,0.0001178,2]
[422223730,1778727057000,-500.0,0.0001178,2]
[422223720,1778727057000,-500.0,0.0001178,2]
[422223718,1778727057000,-500.0,0.0001178,2]
[422223724,1778727057000,-500.0,0.0001178,2]
[422223723,1778727057000,-500.0,0.0001178,2]
[422223722,1778727057000,-500.0,0.0001178,2]
[422223726,1778727057000,-500.91728966,0.0001178,2]
[422223727,1778727057000,-500.0,0.0001178,2]
[422223725,1778727057000,-184.73098,0.0001178,2]
[422223728,1778727057000,-184.73098,0.0001178,2]
[422223731,1778727057000,-184.73098,0.0001178,2]
[422223733,1778727057000,-184.730973,0.0001178,2]
[422223732,1778727057000,-171.827383,0.0001178,2]
[422223734,1778727057000,-171.827383,0.0001178,2]
[422223736,1778727057000,-151.0,0.0001178,2]
[422223741,1778727057000,-500.0,0.0001178,2]
[422223735,1778727057000,-171.827378,0.0001178,2]
[422223740,1778727057000,-151.0,0.0001178,2]
[422223737,1778727057000,-500.0,0.0001178,2]
[422223675,1778727057000,-151.0,0.00011506,2]
[422223739,1778727057000,-246.414374,0.0001178,2]
[422223716,1778727057000,-500.88660526,0.0001178,2]
[422223712,1778727057000,-500.0,0.0001178,2]
[422223738,1778727057000,-151.0,0.0001178,2]
[422223717,1778727057000,-181.614932,0.0001178,2]
[422223709,1778727057000,-160.0,0.000116,3]
[422223679,1778727057000,-500.0,0.00011506,2]
[422223681,1778727057000,-20898.41,0.00011506,2]
[422223687,1778727057000,-500.0,0.00011506,2]
[422223690,1778727057000,-500.0,0.00011506,2]
[422223686,1778727057000,-689.57,0.00011506,2]
[422223684,1778727057000,-501.34499802,0.00011506,2]
[422223683,1778727057000,-500.0,0.00011506,2]
[422223688,1778727057000,-3846.4,0.00011506,2]
[422223682,1778727057000,-500.0,0.00011506,2]
[422223685,1778727057000,-500.0,0.00011506,2]
[422223689,1778727057000,-2864.81,0.00011506,2]
[422223692,1778727057000,-1110.32,0.00011506,2]
[422223702,1778727057000,-500.0,0.00011507,2]
[422223703,1778727057000,-500.0,0.00011507,2]
[422223680,1778727057000,-500.0,0.00011506,2]
[422223691,1778727057000,-500.0,0.00011506,2]
[422223704,1778727057000,-500.0,0.00011507,2]
[422223707,1778727057000,-500.0,0.00011507,2]
[422223708,1778727057000,-500.0,0.00011507,2]
[422223705,1778727057000,-500.0,0.00011507,2]
[422223699,1778727057000,-1297.31,0.00011506,2]
[422223697,1778727057000,-500.0,0.00011506,2]
[422223710,1778727057000,-2632.2504,0.0001178,2]
[422223700,1778727057000,-4169.56,0.00011507,2]
[422223696,1778727057000,-691.8,0.00011506,2]
[422223694,1778727057000,-822.03,0.00011506,2]
[422223695,1778727057000,-500.0,0.00011506,2]
[422223701,1778727057000,-500.0,0.00011507,2]
[422223698,1778727057000,-500.0,0.00011506,2]
[422223693,1778727057000,-500.0,0.00011506,2]
[422223784,1778727058000,-772.07,0.0001178,2]
[422223779,1778727058000,-500.0,0.0001178,2]
[422223780,1778727058000,-500.0,0.0001178,2]
[422223777,1778727058000,-500.0,0.0001178,2]
[422223776,1778727058000,-500.0,0.0001178,2]
[422223778,1778727058000,-467.59960498,0.0001178,2]
[422223774,1778727058000,-286.27885247,0.0001178,2]
[422223773,1778727058000,-151.0,0.0001178,2]
[422223772,1778727058000,-551.33780314,0.0001178,2]
[422223783,1778727058000,-500.0,0.0001178,2]
[422223788,1778727058000,-500.0,0.0001178,2]
[422223775,1778727058000,-502.12282958,0.0001178,2]